{"text_format":"1","workbook":"xlsx","n_sheets":6,"sheets":["Disclaimer","Configurator","Master Text","BOM","Date Drivers","Database"],"not_rendered":{"charts":0,"images":0,"macros":1,"external_links":0,"defined_names":5,"comments":0,"pivot_tables":0},"unopened":[],"bounds":{"document_bytes":16777216,"sheet_cells":100000,"rows_first":2000,"rows_last":500,"rows_between":2000,"halvings":0,"cell_chars":16384,"cell_head_chars":4096},"cells_cut":0,"cells_raw":0,"read":"whole","date_system":"1900"}

{"sheet":"Disclaimer","index":0,"n_rows":6,"n_cols":2,"rows_kept":6,"cut":false,"hidden":false,"merged":[[2,1,2,9],[3,1,4,9],[5,1,7,9]]}
["THIS PRODUCT IS NOW OBSOLETE"]
[]
[null,"Our policy is one of continuous development. Accordingly the design of our products may change at any time. "]
[null,"Whilst every effort is made to produce up to date literature, this document should only be regarded as a guide and is intended for information purposes only."]
[]
[null,"Its contents do not constitute an offer for sale or advice on the application of any product referred to in it. We cannot be held responsible for any reliance on any decisions taken on its contents without specific advice."]

{"sheet":"Configurator","index":1,"n_rows":11,"n_cols":5,"rows_kept":11,"cut":false,"hidden":false,"merged":[[5,1,5,2],[6,0,6,2]]}
["THIS PRODUCT IS NOW OBSOLETE"]
["P891 Circuit Breaker Trip / Close Module"]
[]
["To enable only current variants to be offered, please specify ACTUAL or REQUIRED delivery date here"]
[null,"Format = dd/mm/yyy (where d=day, m=month, y=year)"]
[null,"1 - 4   ",null,"5 - 6",7]
["P891",null,null,{"$f":"$D$9","v":"01"},{"$f":"$D$11","v":"A"}]
["Push Button Guard Option"]
[null,null,null,{"$f":"VLOOKUP(Database!$B$1,Database!$A$2:$C$5,3,FALSE)","v":"01"}]
["Hardware Design Suffix"]
["Date Dependent",null,null,"A"]

{"sheet":"Master Text","index":2,"n_rows":24,"n_cols":3,"rows_kept":24,"cut":false,"hidden":false,"merged":[[4,0,4,2],[6,0,6,2]]}
["THIS PRODUCT IS NOW OBSOLETE"]
[{"$f":"BOM!A3","v":"P89101A"}]
["CIRCUIT BREAKER TRIP / CLOSE MODULE"]
["Vx :"]
["24 - 250Vdc / 30 - 240Vac (50/60 Hz)"]
["Guard Option :"]
[{"$f":"VLOOKUP(Database!$B$1,Database!$A$2:$C$5,2,FALSE)","v":"With Two Individual Covers for the each of the push-buttons"}]
[]
[]
["External Connection Diagram :"]
[null,"10P89101"]
["Outline Drawing :"]
[null,"GN0322"]
[]
[]
[null,"A","Original - 08/11/04"]
[null,"B","Parts removed from BOM as called up on final assembly - 21/12/04"]
[null,"C","Documents added to this sheet - 21/12/04"]
[null,"D","\"Without Push Button Guard\" option removed - 22/12/04"]
[null,"E","\"Without Push Button Guard\" option added back again after UL approval was received - 13/01/05"]
[null,"F","CA date set at 29/04/05 as per CDN R5509 - 29/04/05"]
[null,"G","New Single Cover variant added as per CID KPRE-7B7BDT - 30/01/08"]
[null,"H","New Single Cover variant added as per CID KPRE-7QYBCJ - 20/04/09"]
[null,"I","P891 Obsolete 16/03/2019 - CID005698, GE Publication No GER-4844"]

{"sheet":"BOM","index":3,"n_rows":8,"n_cols":12,"rows_kept":8,"cut":false,"hidden":false,"merged":[[1,1,1,5]]}
["THIS PRODUCT IS NOW OBSOLETE"]
["PCS MATERIAL MASTER","Requirements Key(s) / # of digit in model number",null,null,null,null,"Requirements Keys","Attribute Keys","NUMBER","DESCRIPTION","Qty.","Qty. Required"]
[{"$f":"CONCATENATE(Configurator!$A$7,Configurator!$D$7,Configurator!$E$7)","v":"P89101A"},null,null,6]
[null,null,null,{"$f":"MID(A3,6,1)","v":"1"},null,null,{"$f":"D4","v":"1"},"1","GN0315001","ASSEMBLY RELAY WITH PUSHBUTTON GUARDS",1,{"$f":"IF(G4=H4,K4,\"\")","v":1}]
[null,null,null,{"$f":"MID(A3,6,1)","v":"1"},null,null,{"$f":"D5","v":"1"},"2","GN0315002","ASSEMBLY RELAY",1,{"$f":"IF(G5=H5,K5,\"\")","v":""}]
[null,null,null,{"$f":"MID(A3,6,1)","v":"1"},null,null,{"$f":"D6","v":"1"},"3","GN0315003","ASSEMBLY RELAY WITH SINGLE COVER",1,{"$f":"IF(G6=H6,K6,\"\")","v":""}]
[null,null,null,{"$f":"MID(A3,6,1)","v":"1"},null,null,{"$f":"D7","v":"1"},"4","GN0315004","ASSEMBLY RELAY WITH SINGLE COVER",1,{"$f":"IF(G7=H7,K7,\"\")","v":""}]
[null,null,null,null,null,null," "," "," "," "," ",1]

{"sheet":"Date Drivers","index":4,"n_rows":10,"n_cols":5,"rows_kept":10,"cut":false,"hidden":true,"merged":[]}
["Key Date",{"$f":"IF(Configurator!$A$5=\"\",TODAY(),Configurator!$A$5)","v":"2019-03-18"}]
[null,"2005-04-29","2005-06-10","2008-01-30","2009-04-20"]
["Push Button Guard","With Push Button Guard","With Push Button Guard","With Two Individual Covers for the each of the push-buttons","With Two Individual Covers for the each of the push-buttons"]
[null,"Without Push Button Guard","Without Push Button Guard","Without Push Button Guard","Without Push Button Guard"]
[null," "," ","With Single Cover over the two push-buttons","With Single Cover (with aperture to view the LEDs) over the two push-buttons"]
[null," "," "," ","With Single Cover (incorporating light guides for the LEDs) over the two push-buttons"]
[null,"**","01","01","01"]
[null,"**","02","02","02"]
[null,"**","02","03","03"]
[null,"**","02","03","04"]

{"sheet":"Database","index":5,"n_rows":5,"n_cols":3,"rows_kept":5,"cut":false,"hidden":true,"merged":[]}
[null,1]
[1,{"$f":"HLOOKUP('Date Drivers'!$B$1,'Date Drivers'!$B$2:$E$10,2)","v":"With Two Individual Covers for the each of the push-buttons"},{"$f":"HLOOKUP('Date Drivers'!$B$1,'Date Drivers'!$B$2:$E$10,6)","v":"01"}]
[2,{"$f":"HLOOKUP('Date Drivers'!$B$1,'Date Drivers'!$B$2:$E$10,3)","v":"Without Push Button Guard"},{"$f":"HLOOKUP('Date Drivers'!$B$1,'Date Drivers'!$B$2:$E$10,7)","v":"02"}]
[3,{"$f":"HLOOKUP('Date Drivers'!$B$1,'Date Drivers'!$B$2:$E$10,4)","v":"With Single Cover (with aperture to view the LEDs) over the two push-buttons"},{"$f":"HLOOKUP('Date Drivers'!$B$1,'Date Drivers'!$B$2:$E$10,8)","v":"03"}]
[4,{"$f":"HLOOKUP('Date Drivers'!$B$1,'Date Drivers'!$B$2:$E$10,5)","v":"With Single Cover (incorporating light guides for the LEDs) over the two push-buttons"},{"$f":"HLOOKUP('Date Drivers'!$B$1,'Date Drivers'!$B$2:$E$10,9)","v":"04"}]